lending/lending_fUSD_20250429
["ID","MTS","AMOUNT","RATE_DAILY","PERIOD"]
[359354166,1745949075332,-519.67,0.00029863,2]
[359354167,1745949075341,-498.52,0.00029863,2]
[359354168,1745949075350,-470.0,0.00029863,2]
[359354169,1745949075360,-470.0,0.00029863,2]
[359354170,1745949075370,-470.0,0.00029863,2]
[359354171,1745949075379,-470.0,0.00029863,2]
[359354172,1745949075389,-537.97,0.00029863,2]
[359354173,1745949075398,-470.0,0.00029863,2]
[359354174,1745949075407,-470.0,0.00029863,2]
[359354175,1745949075417,-470.0,0.00029863,2]
[359354176,1745949075426,-470.0,0.00029863,2]
[359354177,1745949075436,-1113.6,0.00029863,2]
[359354178,1745949075445,-470.0,0.00029863,2]
[359354179,1745949075454,-611.04,0.00029863,2]
[359354180,1745949075463,-470.0,0.00029863,2]
[359354181,1745949075473,-306.75130727,0.00029863,2]
[359354182,1745949075483,-631.2,0.00029863,2]
[359354183,1745949075492,-564.79,0.00029863,2]
[359354184,1745949075502,-668.5,0.00029863,2]
[359354185,1745949075511,-826.62,0.00029863,2]
[359354186,1745949075521,-470.0,0.00029863,2]
[359354187,1745949075531,-470.0,0.00029863,2]
[359354188,1745949075540,-470.0,0.00029863,2]
[359354189,1745949075549,-470.0,0.00029863,2]
[359354190,1745949075559,-800.64,0.00029863,2]
[359354191,1745949075568,-470.0,0.00029863,2]
[359354192,1745949075578,-470.0,0.00029863,2]
[359354193,1745949075587,-502.1,0.00029863,2]
[359354194,1745949075597,-619.84110893,0.00029863,2]
[359354195,1745949075606,-470.0,0.00029863,2]
[359354196,1745949075616,-2160.32,0.00029863,2]
[359354197,1745949075626,-470.0,0.00029863,2]
[359354198,1745949075636,-470.0,0.00029863,2]
[359354199,1745949075646,-1312.33,0.00029863,2]
[359354200,1745949075655,-470.0,0.00029863,2]
[359354201,1745949075664,-548.44,0.00029863,2]
[359354202,1745949075675,-2312.86,0.00029863,2]
[359354203,1745949075686,-470.0,0.00029863,2]
[359354204,1745949075695,-470.0,0.00029863,2]
[359354205,1745949075704,-470.0,0.00029863,2]
[359354206,1745949075714,-484.25,0.00029863,2]
[359354207,1745949075724,-470.0,0.00029863,2]
[359354208,1745949075733,-470.0,0.00029863,2]
[359354209,1745949075742,-470.0,0.00029863,2]
[359354210,1745949075751,-557.00027186,0.00029863,2]
[359354211,1745949075761,-470.0,0.00029863,2]
[359354212,1745949075771,-470.0,0.00029863,2]
[359354213,1745949075780,-470.0,0.00029863,2]
[359354214,1745949075790,-5959.741954,0.00029863,2]
[359354215,1745949075799,-470.0,0.00029863,2]
[359354216,1745949075809,-177.01842063,0.00029863,2]
[359354217,1745949075819,-470.0,0.00029863,2]
[359354218,1745949075830,-470.0,0.00029863,2]
[359354219,1745949075840,-470.0,0.00029863,2]
[359354220,1745949075849,-470.0,0.00029863,2]
[359354221,1745949075859,-470.0,0.00029863,2]
[359354222,1745949075869,-470.0,0.00029863,2]
[359354223,1745949075879,-659.334822,0.00029863,2]
[359354224,1745949075889,-657.74,0.00029863,2]
[359354225,1745949075899,-486.33,0.00029863,2]
[359354226,1745949075908,-470.0,0.00029863,2]
[359354227,1745949075918,-470.0,0.00029863,2]
[359354228,1745949075927,-470.0,0.00029863,2]
[359354229,1745949075937,-437.515976,0.00029863,2]
[359354230,1745949075946,-470.0,0.00029863,2]
[359354231,1745949075955,-542.45,0.00029863,2]
[359354232,1745949075964,-656.69,0.00029863,2]
[359354233,1745949075974,-552.91,0.00029863,2]
[359354234,1745949075983,-470.0,0.00029863,2]
[359354235,1745949075992,-470.0,0.00029863,2]
[359354236,1745949076002,-610.66,0.00029863,2]
[359354237,1745949076012,-185.437921,0.00029863,2]
[359354238,1745949076022,-470.0,0.00029863,2]
[359354239,1745949076031,-558.47,0.00029863,2]
[359354240,1745949076043,-471.31,0.00029863,2]
[359354241,1745949076053,-1049.74,0.00029863,2]
[359354242,1745949076063,-488.07573306,0.00029863,2]
[359354243,1745949076073,-566.36,0.00029863,2]
[359354244,1745949076082,-470.0,0.00029863,2]
[359354245,1745949076093,-470.0,0.00029863,2]
[359354246,1745949076102,-534.78,0.00029863,2]
[359354247,1745949076112,-563.33,0.00029863,2]
[359354248,1745949076123,-372.483872,0.00029863,2]
[359354249,1745949076133,-470.0,0.00029863,2]
[359354250,1745949076142,-470.0,0.00029863,2]
[359354251,1745949076152,-470.0,0.00029863,2]
[359354252,1745949076161,-557.82,0.00029863,2]
[359354253,1745949076170,-1537.22,0.00029863,2]
[359354254,1745949076180,-496.59,0.00029863,2]
[359354255,1745949076189,-652.05,0.00029863,2]
[359354256,1745949076199,-470.0,0.00029863,2]
[359354257,1745949076208,-1146.41,0.00029863,2]
[359354258,1745949076218,-579.71,0.00029863,2]
[359354259,1745949076228,-470.0,0.00029863,2]
[359354260,1745949076237,-162.06005308,0.00029863,2]
[359354261,1745949076247,-470.0,0.00029863,2]
[359354262,1745949076257,-470.0,0.00029863,2]
[359354263,1745949076266,-704.42,0.00029863,2]
[359354264,1745949076276,-470.0,0.00029863,2]
[359354265,1745949076286,-470.0,0.00029863,2]
[359354266,1745949076295,-470.0,0.00029863,2]
[359354267,1745949076304,-297.43681444,0.00029863,2]
[359354268,1745949076314,-470.0,0.00029863,2]
[359354269,1745949076324,-470.0,0.00029863,2]
[359354270,1745949076333,-625.71,0.00029863,2]
[359354271,1745949076342,-2279.31,0.00029863,2]
[359354272,1745949076352,-470.0,0.00029863,2]
[359354273,1745949076361,-470.0,0.00029863,2]
[359354274,1745949076372,-470.0,0.00029863,2]
[359354275,1745949076381,-544.48,0.00029863,2]
[359354276,1745949076391,-904.77,0.00029863,2]
[359354277,1745949076400,-1788.53,0.00029863,2]
[359354278,1745949076410,-510.11,0.00029863,2]
[359354279,1745949076420,-470.0,0.00029863,2]
[359354280,1745949076429,-470.0,0.00029863,2]
[359354281,1745949076438,-685.59,0.00029863,2]
[359354282,1745949076447,-470.0,0.00029863,2]
[359354283,1745949076457,-470.0,0.00029863,2]
[359354284,1745949076467,-539.63,0.00029863,2]
[359354285,1745949076476,-470.0,0.00029863,2]
[359354286,1745949076486,-470.0,0.00029863,2]
[359354287,1745949076496,-1581.86,0.00029863,2]
[359354288,1745949076506,-470.0,0.00029863,2]
[359354289,1745949076516,-703.7,0.00029863,2]
[359354290,1745949076526,-470.0,0.00029863,2]
[359354291,1745949076536,-515.86,0.00029863,2]
[359354292,1745949076546,-2163.53,0.00029863,2]
[359354293,1745949076555,-470.0,0.00029863,2]
[359354294,1745949076565,-470.0,0.00029863,2]
[359354295,1745949076575,-1020.49,0.00029863,2]
[359354296,1745949076584,-470.0,0.00029863,2]
[359354297,1745949076594,-716.59,0.00029863,2]
[359354298,1745949076603,-470.0,0.00029863,2]
[359354299,1745949076612,-470.0,0.00029863,2]
[359354300,1745949076622,-490.92,0.00029863,2]
[359354301,1745949076632,-470.0,0.00029863,2]
[359354302,1745949076805,-470.0,0.00029863,2]
[359354303,1745949076815,-2329.69,0.00029863,2]
[359354304,1745949076826,-453.75248562,0.00029863,2]
[359354305,1745949076836,-470.0,0.00029863,2]
[359354306,1745949076846,-765.88,0.00029863,2]
[359354307,1745949076855,-470.0,0.00029863,2]
[359354308,1745949076864,-470.0,0.00029863,2]
[359354309,1745949076874,-470.0,0.00029863,2]
[359354310,1745949076884,-1203.42,0.00029863,2]
[359354311,1745949076894,-568.19,0.00029863,2]
[359354312,1745949076903,-645.19,0.00029863,2]
[359354313,1745949076913,-970.99,0.00029863,2]
[359354314,1745949076923,-901.28,0.00029863,2]
[359354315,1745949076933,-470.0,0.00029863,2]
[359354316,1745949076943,-701.64,0.00029863,2]
[359354317,1745949076952,-470.0,0.00029863,2]
[359354318,1745949076962,-470.0,0.00029863,2]
[359354319,1745949076971,-1092.53,0.00029863,2]
[359354320,1745949076981,-470.0,0.00029863,2]
[359354321,1745949076990,-470.0,0.00029863,2]
[359354322,1745949077000,-470.0,0.00029863,2]
[359354323,1745949077011,-470.0,0.00029863,2]
[359354324,1745949077020,-903.38,0.00029863,2]
[359354325,1745949077030,-470.0,0.00029863,2]
[359354326,1745949077042,-1736.45,0.00029863,2]
[359354327,1745949077051,-470.0,0.00029863,2]
[359354328,1745949077061,-1436.64,0.00029863,2]
[359354329,1745949077070,-559.81,0.00029863,2]
[359354330,1745949077080,-2108.64,0.00029863,2]
[359354331,1745949077090,-960.7,0.00029863,2]
[359354332,1745949077099,-2353.36,0.00029863,2]
[359354333,1745949077109,-470.0,0.00029863,2]
[359354334,1745949077118,-745.59,0.00029863,2]
[359354335,1745949077127,-545.5,0.00029863,2]
[359354336,1745949077137,-549.47,0.00029863,2]
[359354337,1745949077147,-470.0,0.00029863,2]
[359354338,1745949077157,-586.45,0.00029863,2]
[359354339,1745949077166,-470.0,0.00029863,2]
[359354340,1745949077176,-770.83,0.00029863,2]
[359354341,1745949077185,-470.0,0.00029863,2]
[359354342,1745949077195,-797.04,0.00029863,2]
[359354343,1745949077204,-543.81,0.00029863,2]
[359354344,1745949077214,-885.12,0.00029863,2]
[359354345,1745949077223,-470.0,0.00029863,2]
[359354346,1745949077232,-562.35,0.00029863,2]
[359354347,1745949077241,-476.24,0.00029863,2]
[359354348,1745949077250,-880.52,0.00029863,2]
[359354349,1745949077259,-915.71,0.00029863,2]
[359354350,1745949077269,-470.0,0.00029863,2]
[359354351,1745949077279,-820.44,0.00029863,2]
[359354352,1745949077288,-470.0,0.00029863,2]
[359354353,1745949077297,-470.0,0.00029863,2]
[359354354,1745949077307,-470.0,0.00029863,2]
[359354355,1745949077316,-625.99,0.00029863,2]
[359354356,1745949077326,-568.66,0.00029863,2]
[359354357,1745949077335,-847.38,0.00029863,2]
[359354358,1745949077345,-902.33,0.00029863,2]
[359354359,1745949077354,-486.67,0.00029863,2]
[359354360,1745949077363,-682.29,0.00029863,2]
[359354361,1745949077374,-3039.36,0.00029863,2]
[359354362,1745949077384,-474.23,0.00029863,2]
[359354363,1745949077393,-470.0,0.00029863,2]
[359354364,1745949077404,-470.0,0.00029863,2]
[359354365,1745949077414,-470.0,0.00029863,2]
[359354366,1745949077424,-613.1,0.00029863,2]
[359354367,1745949077433,-683.49,0.00029863,2]
[359354368,1745949077443,-470.0,0.00029863,2]
[359354369,1745949077452,-537.75,0.00029863,2]
[359354370,1745949077462,-539.83,0.00029863,2]
[359354371,1745949077471,-595.72,0.00029863,2]
[359354372,1745949077481,-470.0,0.00029863,2]
[359354373,1745949077491,-470.0,0.00029863,2]
[359354374,1745949077500,-470.0,0.00029863,2]
[359354375,1745949077510,-6080.07,0.00029863,2]
[359354376,1745949077520,-481.77,0.00029863,2]
[359354377,1745949077530,-622.98,0.00029863,2]
[359354378,1745949077540,-520.98,0.00029863,2]
[359354379,1745949077549,-470.0,0.00029863,2]
[359354380,1745949077559,-869.31,0.00029863,2]
[359354381,1745949077569,-704.81,0.00029863,2]
[359354382,1745949077579,-518.15169049,0.00029863,2]
[359354383,1745949077588,-12545.32,0.00029863,2]
[359354384,1745949077598,-492.66,0.00029863,2]
[359354385,1745949077607,-783.52,0.00029863,2]
[359354386,1745949077617,-557.05,0.00029863,2]
[359354387,1745949077627,-470.0,0.00029863,2]
[359354388,1745949077637,-470.0,0.00029863,2]
[359354389,1745949077647,-531.21,0.00029863,2]
[359354390,1745949077657,-488.6,0.00029863,2]
[359354391,1745949077667,-470.0,0.00029863,2]
[359354392,1745949077676,-636.94,0.00029863,2]
[359354393,1745949077686,-1144.88,0.00029863,2]
[359354394,1745949077695,-470.0,0.00029863,2]
[359354395,1745949077705,-624.4,0.00029863,2]
[359354396,1745949077715,-650.35,0.00029863,2]
[359354397,1745949077724,-673.11,0.00029863,2]
[359354398,1745949077733,-470.0,0.00029863,2]
[359354399,1745949077743,-470.0,0.00029863,2]
[359354400,1745949077752,-472.75,0.00029863,2]
[359354401,1745949077762,-470.0,0.00029863,2]
[359354402,1745949077772,-470.0,0.00029863,2]
[359354403,1745949077781,-6481.15,0.00029863,2]
[359354404,1745949077791,-505.43,0.00029863,2]
[359354405,1745949077801,-470.0,0.00029863,2]
[359354406,1745949077811,-470.0,0.00029863,2]
[359354407,1745949077820,-470.0,0.00029863,2]
[359354408,1745949077830,-61295.82,0.00029863,2]
[359354409,1745949077840,-482.94,0.00029863,2]
[359354410,1745949077850,-606.96,0.00029863,2]
[359354411,1745949077859,-470.0,0.00029863,2]
[359354412,1745949077869,-470.0,0.00029863,2]
[359354413,1745949077878,-470.0,0.00029863,2]
[359354414,1745949077888,-586.56,0.00029863,2]
[359354415,1745949077898,-1001.6,0.00029863,2]
[359354416,1745949077907,-470.0,0.00029863,2]
[359354417,1745949077916,-470.0,0.00029863,2]
[359354418,1745949077926,-470.0,0.00029863,2]
[359354419,1745949077935,-470.0,0.00029863,2]
[359354420,1745949077945,-7239.44,0.00029863,2]
[359354421,1745949077955,-470.0,0.00029863,2]
[359354422,1745949077964,-610.17,0.00029863,2]
[359354423,1745949077974,-6805.43,0.00029863,2]
[359354424,1745949077983,-2927.0,0.00029863,2]
[359354425,1745949077993,-470.0,0.00029863,2]
[359354426,1745949078002,-470.0,0.00029863,2]
[359354427,1745949078012,-3402.46960673,0.0002987,2]
[359354428,1745949078022,-151.0,0.00029899,7]
[359354429,1745949078032,-229.459808,0.00029899,7]
[359354430,1745949078046,-151.0,0.00029899,7]
[359354431,1745949078056,-151.0,0.00029899,7]
[359354432,1745949078066,-182.458414,0.00029899,7]
[359354433,1745949078076,-151.0,0.00029899,7]
[359354434,1745949078086,-75808.17179594,0.000299,2]
[359354435,1745949078095,-400.0,0.000299,10]
[359354436,1745949078105,-2614.73930565,0.0002991,2]
[359354437,1745949078117,-723.86885922,0.0002997,2]
[359354438,1745949078128,-470.0,0.00029977,2]
[359354439,1745949078138,-229.1514482,0.0002999,2]
[359354440,1745949078148,-425.65161399,0.0003,2]
[359354441,1745949078159,-1752.69659763,0.0003,2]
[359354442,1745949078169,-194.2,0.0003,2]
[359354443,1745949078178,-160.81582731,0.0003,2]
[359354444,1745949078188,-302.0,0.0003,7]
[359354445,1745949078199,-1000.0,0.0003,5]
[359354446,1745949078209,-1000.0,0.0003,10]
[359354447,1745949078219,-499.99,0.0003,5]
[359354448,1745949078229,-880.32611519,0.0003,2]
[359354449,1745949078239,-213.0,0.0003,2]
[359354450,1745949078249,-305.187385,0.0003,2]
[359354451,1745949078259,-2000.0,0.0003,4]
[359354452,1745949078269,-211.25339233,0.00030019,2]
[359354453,1745949078281,-1097.76173594,0.00030036,2]
[359354454,1745949078291,-51455.88,0.00030051,2]
[359354455,1745949078301,-1558.61,0.0003011,2]
[359354456,1745949078311,-568.59,0.00030129,2]
[359354457,1745949078321,-77954.86258979,0.0003013,2]
[359354458,1745949078331,-500.0,0.00030135,2]
[359354459,1745949078341,-500.0,0.00030135,2]
[359354460,1745949078351,-500.0,0.00030135,2]
[359354461,1745949078361,-151.0,0.00030135,7]
[359354462,1745949078371,-568.59,0.00030135,2]
[359354463,1745949078381,-568.59,0.00030135,2]
[359354464,1745949078391,-568.59,0.00030135,2]
[359354465,1745949078401,-568.59,0.00030135,2]
[359354466,1745949078411,-568.59,0.00030135,2]
[359354467,1745949078420,-568.63,0.00030135,2]
[359354468,1745949078431,-519.67,0.00030136,2]
[359354469,1745949078440,-498.52,0.00030136,2]
[359354470,1745949078450,-470.0,0.00030136,2]
[359354471,1745949078460,-470.0,0.00030136,2]
[359354472,1745949078470,-470.0,0.00030136,2]
[359354473,1745949078481,-470.0,0.00030136,2]
[359354474,1745949078491,-537.97,0.00030136,2]
[359354475,1745949078501,-470.0,0.00030136,2]
[359354476,1745949078510,-470.0,0.00030136,2]
[359354477,1745949078520,-558.76695475,0.00030136,2]
[359354478,1745949078530,-470.0,0.00030136,2]
[359354479,1745949078541,-1113.6,0.00030136,2]
[359354480,1745949078550,-470.0,0.00030136,2]
[359354481,1745949078560,-611.04,0.00030136,2]
[359354482,1745949078570,-470.0,0.00030136,2]
[359354483,1745949078580,-631.2,0.00030136,2]
[359354484,1745949078591,-564.79,0.00030136,2]
[359354485,1745949078600,-668.5,0.00030136,2]
[359354486,1745949078611,-826.62,0.00030136,2]
[359354487,1745949078621,-470.0,0.00030136,2]
[359354488,1745949078631,-470.0,0.00030136,2]
[359354489,1745949078642,-470.0,0.00030136,2]
[359354490,1745949078652,-470.0,0.00030136,2]
[359354491,1745949078662,-800.64,0.00030136,2]
[359354492,1745949078680,-470.0,0.00030136,2]
[359354493,1745949078689,-470.0,0.00030136,2]
[359354494,1745949078699,-502.1,0.00030136,2]
[359354495,1745949078709,-470.0,0.00030136,2]
[359354496,1745949078718,-2160.32,0.00030136,2]
[359354497,1745949078728,-470.0,0.00030136,2]
[359354498,1745949078738,-470.0,0.00030136,2]
[359354499,1745949078748,-1312.33,0.00030136,2]
[359354500,1745949078758,-470.0,0.00030136,2]
[359354501,1745949078768,-548.44,0.00030136,2]
[359354502,1745949078778,-151.0,0.00030136,7]
[359354503,1745949078788,-2312.86,0.00030136,2]
[359354504,1745949078798,-470.0,0.00030136,2]
[359354505,1745949078807,-470.0,0.00030136,2]
[359354506,1745949078817,-157.88514287,0.00030136,2]
[359354507,1745949078827,-484.25,0.00030136,2]
[359354508,1745949078838,-470.0,0.00030136,2]
[359354509,1745949078847,-470.0,0.00030136,2]
[359354510,1745949078857,-470.0,0.00030136,2]
[359354511,1745949078870,-381.29934302,0.00030136,2]
[359354512,1745949078880,-470.0,0.00030136,2]
[359354513,1745949078891,-470.0,0.00030136,2]
[359354514,1745949078901,-5959.741954,0.00030136,2]
[359354515,1745949078912,-470.0,0.00030136,2]
[359354516,1745949078922,-470.0,0.00030136,2]
[359354517,1745949078933,-470.0,0.00030136,2]
[359354518,1745949078943,-470.0,0.00030136,2]
[359354519,1745949078953,-470.0,0.00030136,2]
[359354520,1745949078963,-470.0,0.00030136,2]
[359354521,1745949078973,-372.42183551,0.00030136,2]
[359354522,1745949078984,-659.334822,0.00030136,2]
[359354523,1745949078995,-657.74,0.00030136,2]
[359354524,1745949079005,-486.33,0.00030136,2]
[359354525,1745949079015,-470.0,0.00030136,2]
[359354526,1745949079025,-470.0,0.00030136,2]
[359354527,1745949079035,-470.0,0.00030136,2]
[359354528,1745949079047,-437.515976,0.00030136,2]
[359354529,1745949079057,-470.0,0.00030136,2]
[359354530,1745949079067,-542.45,0.00030136,2]
[359354531,1745949079077,-656.69,0.00030136,2]
[359354532,1745949079087,-552.91,0.00030136,2]
[359354533,1745949079097,-470.0,0.00030136,2]
[359354534,1745949079106,-470.0,0.00030136,2]
[359354535,1745949079116,-610.66,0.00030136,2]
[359354536,1745949079127,-470.0,0.00030136,2]
[359354537,1745949079138,-558.47,0.00030136,2]
[359354538,1745949079147,-471.31,0.00030136,2]
[359354539,1745949079158,-1049.74,0.00030136,2]
[359354540,1745949079168,-566.36,0.00030136,2]
[359354541,1745949079178,-470.0,0.00030136,2]
[359354542,1745949079188,-470.0,0.00030136,2]
[359354543,1745949079197,-534.78,0.00030136,2]
[359354544,1745949079208,-563.33,0.00030136,2]
[359354545,1745949079219,-372.483872,0.00030136,2]
[359354546,1745949079230,-470.0,0.00030136,2]
[359354547,1745949079289,-470.0,0.00030136,2]
[359354548,1745949079300,-470.0,0.00030136,2]
[359354549,1745949079310,-557.82,0.00030136,2]
[359354550,1745949079320,-1537.22,0.00030136,2]
[359354551,1745949079330,-496.59,0.00030136,2]
[359354552,1745949079339,-652.05,0.00030136,2]
[359354553,1745949079349,-470.0,0.00030136,2]
[359354554,1745949079359,-1146.41,0.00030136,2]
[359354555,1745949079370,-579.71,0.00030136,2]
[359354556,1745949079379,-470.0,0.00030136,2]
[359354557,1745949079389,-470.0,0.00030136,2]
[359354558,1745949079399,-470.0,0.00030136,2]
[359354559,1745949079408,-704.42,0.00030136,2]
[359354560,1745949079418,-470.0,0.00030136,2]
[359354561,1745949079429,-470.0,0.00030136,2]
[359354562,1745949079439,-470.0,0.00030136,2]
[359354563,1745949079450,-470.0,0.00030136,2]
[359354564,1745949079460,-470.0,0.00030136,2]
[359354565,1745949079470,-625.71,0.00030136,2]
[359354566,1745949079479,-2279.31,0.00030136,2]
[359354567,1745949079490,-470.0,0.00030136,2]
[359354568,1745949079500,-470.0,0.00030136,2]
[359354569,1745949079510,-470.0,0.00030136,2]
[359354570,1745949079520,-544.48,0.00030136,2]
[359354571,1745949079530,-904.77,0.00030136,2]
[359354572,1745949079540,-1788.53,0.00030136,2]
[359354573,1745949079550,-510.11,0.00030136,2]
[359354574,1745949079560,-3823.23,0.00030136,2]
[359354575,1745949079569,-470.0,0.00030136,2]
[359354576,1745949079579,-2052.75,0.00030136,2]
[359354577,1745949079589,-470.0,0.00030136,2]
[359354578,1745949079598,-685.59,0.00030136,2]
[359354579,1745949079608,-243.73720957,0.00030136,2]
[359354580,1745949079618,-470.0,0.00030136,2]
[359354581,1745949079629,-539.63,0.00030136,2]
[359354582,1745949079638,-2047.07,0.00030136,2]
[359354583,1745949079648,-470.0,0.00030136,2]
[359354584,1745949079658,-1581.86,0.00030136,2]
[359354585,1745949079668,-470.0,0.00030136,2]
[359354586,1745949079678,-470.0,0.00030136,2]
[359354587,1745949079689,-703.7,0.00030136,2]
[359354588,1745949079699,-470.0,0.00030136,2]
[359354589,1745949079709,-470.0,0.00030136,2]
[359354590,1745949079718,-2163.53,0.00030136,2]
[359354591,1745949079728,-515.86,0.00030136,2]
[359354592,1745949079737,-470.0,0.00030136,2]
[359354593,1745949079747,-1020.49,0.00030136,2]
[359354594,1745949079756,-470.0,0.00030136,2]
[359354595,1745949079767,-716.59,0.00030136,2]
[359354596,1745949079777,-470.0,0.00030136,2]
[359354597,1745949079786,-470.0,0.00030136,2]
[359354598,1745949079796,-490.92,0.00030136,2]
[359354599,1745949079806,-470.0,0.00030136,2]
[359354600,1745949079815,-470.0,0.00030136,2]
[359354601,1745949079825,-2329.69,0.00030136,2]
[359354602,1745949079835,-470.0,0.00030136,2]
[359354603,1745949079844,-765.88,0.00030136,2]
[359354604,1745949079853,-470.0,0.00030136,2]
[359354605,1745949079862,-470.0,0.00030136,2]
[359354606,1745949079872,-470.0,0.00030136,2]
[359354607,1745949079882,-1203.42,0.00030136,2]
[359354608,1745949079891,-568.19,0.00030136,2]
[359354609,1745949079900,-645.19,0.00030136,2]
[359354610,1745949079909,-970.99,0.00030136,2]
[359354611,1745949079918,-901.28,0.00030136,2]
[359354612,1745949079927,-470.0,0.00030136,2]
[359354613,1745949079936,-701.64,0.00030136,2]
[359354614,1745949079945,-419.83258963,0.00030136,2]
[359354615,1745949079955,-470.0,0.00030136,2]
[359354616,1745949079964,-1092.53,0.00030136,2]
[359354617,1745949079973,-470.0,0.00030136,2]
[359354618,1745949079983,-470.0,0.00030136,2]
[359354619,1745949079992,-470.0,0.00030136,2]
[359354620,1745949080001,-470.0,0.00030136,2]
[359354621,1745949080011,-903.38,0.00030136,2]
[359354622,1745949080020,-568.47134869,0.00030136,2]
[359354623,1745949080029,-1736.45,0.00030136,2]
[359354624,1745949080038,-470.0,0.00030136,2]
[359354625,1745949080051,-1436.64,0.00030136,2]
[359354626,1745949080061,-559.81,0.00030136,2]
[359354627,1745949080070,-2108.64,0.00030136,2]
[359354628,1745949080080,-960.7,0.00030136,2]
[359354629,1745949080091,-2353.36,0.00030136,2]
[359354630,1745949080101,-470.0,0.00030136,2]
[359354631,1745949080111,-745.59,0.00030136,2]
[359354632,1745949080120,-545.5,0.00030136,2]
[359354633,1745949080129,-549.47,0.00030136,2]
[359354634,1745949080139,-470.0,0.00030136,2]
[359354635,1745949080149,-586.45,0.00030136,2]
[359354636,1745949080159,-470.0,0.00030136,2]
[359354637,1745949080168,-770.83,0.00030136,2]
[359354638,1745949080178,-470.0,0.00030136,2]
[359354639,1745949080187,-797.04,0.00030136,2]
[359354640,1745949080197,-543.81,0.00030136,2]
[359354641,1745949080207,-885.12,0.00030136,2]
[359354642,1745949080217,-470.0,0.00030136,2]
[359354643,1745949080226,-562.35,0.00030136,2]
[359354644,1745949080236,-151.0,0.00030136,7]
[359354645,1745949080245,-476.24,0.00030136,2]
[359354646,1745949080254,-880.52,0.00030136,2]
[359354647,1745949080264,-915.71,0.00030136,2]
[359354648,1745949080273,-470.0,0.00030136,2]
[359354649,1745949080283,-820.44,0.00030136,2]
[359354650,1745949080292,-470.0,0.00030136,2]
[359354651,1745949080302,-470.0,0.00030136,2]
[359354652,1745949080312,-470.0,0.00030136,2]
[359354653,1745949080322,-625.99,0.00030136,2]
[359354654,1745949080331,-568.66,0.00030136,2]
[359354655,1745949080341,-902.33,0.00030136,2]
[359354656,1745949080351,-486.67,0.00030136,2]
[359354657,1745949080360,-847.38,0.00030136,2]
[359354658,1745949080369,-682.29,0.00030136,2]
[359354659,1745949080379,-3039.36,0.00030136,2]
[359354660,1745949080388,-474.23,0.00030136,2]
[359354661,1745949080399,-470.0,0.00030136,2]
[359354662,1745949080409,-470.0,0.00030136,2]
[359354663,1745949080418,-613.1,0.00030136,2]
[359354664,1745949080428,-470.0,0.00030136,2]
[359354665,1745949080437,-683.49,0.00030136,2]